bitfinex/quotes_SOLUSD_20241107
["timestamp","ask_amount","ask_price","bid_price","bid_amount"]
[1730941369230,0.12549,186.98,186.94,0.1]
[1730941370120,5.55320617,186.99,186.98,0.1]
[1730941370310,18.15271245,187.06,186.98,0.1]
[1730941370311,158.4,187.03,186.98,0.2]
[1730941370633,0.12549,187.03,186.98,0.2]
[1730941370834,0.12549,187.03,186.95,0.1]
[1730941371129,0.12549,187.01,186.94,0.1]
[1730941371330,158.52549,187.01,186.95,0.1]
[1730941371630,158.52549,187.01,186.93,0.1]
[1730941371824,158.52549,187.01,186.94,0.1]
[1730941373138,158.52549,187.01,186.93,0.1]
[1730941374525,158.52549,187.01,186.94,0.1]
[1730941374732,158.52549,187.01,186.96,0.1]
[1730941376733,0.12549,187.02,186.95,0.2]
[1730941377043,0.12549,187.02,186.98,0.1]
[1730941377214,0.12549,187.03,186.98,0.1]
[1730941377719,5.56105895,187.04,186.98,0.1]
[1730941378031,5.56105895,187.04,187.01,0.1]
[1730941378239,5.56105895,187.04,187.02,0.1]
[1730941378814,6.4647,187.11,187.02,0.1]
[1730941378815,22.8809,187.11,187.04,0.1]
[1730941379013,24.28028523,187.11,187.02,0.1]
[1730941379328,5.56928173,187.06,187.02,0.1]
[1730941379517,0.12549,187.1,187.03,0.1]
[1730941379920,0.12549,187.05,187.03,0.1]
[1730941380235,24.28028523,187.11,187.03,0.1]
[1730941380438,0.12549,187.05,187.01,0.1]
[1730941380640,0.12549,187.05,186.99,0.1]
[1730941380939,5.69378714,187.05,187.01,0.1]
[1730941381240,5.69378714,187.05,186.99,0.1]
[1730941381445,5.69378714,187.05,186.98,0.2]
[1730941381625,5.69378714,187.05,186.98,0.1]
[1730941381815,5.69378714,187.05,186.97,0.1]
[1730941382140,5.69378714,187.05,186.95,1.33643618]
[1730941382141,5.69378714,187.05,186.99,0.1]
[1730941382644,5.69378714,187.05,187.01,0.1]
[1730941383138,5.69378714,187.05,186.98,0.1]
[1730941383139,5.69378714,187.05,187.02,0.1]
[1730941383339,5.69378714,187.05,187.03,0.1]
[1730941383647,5.69378714,187.05,186.99,0.2]
[1730941383843,5.69378714,187.05,187.03,0.1]
[1730941385137,5.69378714,187.05,187.04,0.1]
[1730941385524,5.69378714,187.05,187.02,0.1]
[1730941385722,5.69378714,187.05,187.04,0.1]
[1730941386125,5.69378714,187.05,187.01,0.2]
[1730941386325,5.69378714,187.05,187.04,0.1]
[1730941387148,5.56829714,187.05,187.04,0.1]
[1730941387933,5.69378714,187.05,187.04,0.1]
[1730941388134,5.56829714,187.05,187.04,0.2]
[1730941388346,158.4,187.14,187.1,0.1]
[1730941388641,22.1494,187.16,187.11,0.1]
[1730941389022,5.56546687,187.15,187.11,0.1]
[1730941389223,5.56546687,187.15,187.08,0.1]
[1730941389224,5.56546687,187.15,187.1,0.1]
[1730941389852,0.12549,187.14,187.11,0.1]
[1730941390229,5.56546687,187.15,187.12,0.1]
[1730941390431,5.56546687,187.15,187.13,0.1]
[1730941390641,0.12549,187.14,187.13,0.1]
[1730941391037,5.56546687,187.15,187.13,0.1]
[1730941391552,5.56546687,187.15,187.14,0.1]
[1730941391728,5.69095687,187.15,187.14,0.1]
[1730941392350,5.56546687,187.15,187.14,0.1]
[1730941392528,15.7247,187.2,187.16,0.1]
[1730941392834,0.12549,187.17,187.1,0.1]
[1730941393031,0.12549,187.17,187.09,0.1]
[1730941393032,7.39817568,187.17,187.09,0.1]
[1730941393823,23.776884,187.16,187.1,0.1]
[1730941394166,23.776884,187.16,187.04,15.5801]
[1730941394167,0.12549,187.11,187.04,0.1]
[1730941394453,0.12549,187.11,187.02,0.1]
[1730941394625,0.12549,187.11,187.0,0.1]
[1730941394832,0.12549,187.09,187.0,0.1]
[1730941395047,0.12549,187.09,187.0,0.2]
[1730941395233,0.12549,187.09,187.02,0.1]
[1730941395433,0.12549,187.09,187.04,0.1]
[1730941395858,16.309,187.12,187.07,0.1]
[1730941396230,0.12549,187.11,187.07,0.1]
[1730941396527,158.4,187.14,187.07,0.2]
[1730941396727,0.12549,187.14,187.07,0.2]
[1730941396935,0.12549,187.14,187.05,0.1]
[1730941397135,0.12549,187.14,187.01,0.2]
[1730941397366,0.12549,187.12,187.01,0.2]
[1730941397676,5.3424,187.19,187.06,0.1]
[1730941397954,27.3596,187.2,187.09,0.1]
[1730941398832,22.0177,187.2,187.1,0.1]
[1730941399053,0.12549,187.17,187.11,0.1]
[1730941399438,23.902374,187.17,187.11,0.1]
[1730941400364,23.902374,187.17,187.09,0.2]
[1730941401249,23.902374,187.17,187.11,0.1]
[1730941401434,23.902374,187.17,187.12,0.1]
[1730941402435,23.902374,187.17,187.11,0.2]
[1730941402637,23.902374,187.17,187.11,0.1]
[1730941402854,158.4,187.19,187.14,0.1]
[1730941403161,5.57133053,187.16,187.14,0.1]
[1730941403454,22.0177,187.2,187.14,0.1]
[1730941403656,5.56736344,187.16,187.15,0.1]
[1730941403847,5.69285344,187.16,187.15,0.1]
[1730941404031,15.7029,187.2,187.14,0.2]
[1730941404233,0.12549,187.15,187.14,0.2]
[1730941404649,0.12549,187.15,187.11,0.1]
[1730941404867,0.12549,187.15,187.1,0.2]
[1730941405049,0.12549,187.15,187.1,0.1]
[1730941405434,0.12549,187.15,187.09,0.2]
[1730941405634,0.12549,187.15,187.11,0.1]
[1730941406050,0.12549,187.15,187.12,0.2]
[1730941406253,0.12549,187.15,187.13,0.1]
[1730941406572,0.12549,187.15,187.14,0.1]
[1730941406734,5.56918515,187.16,187.15,0.2]
[1730941406931,22.2383,187.25,187.15,0.2]
[1730941407135,158.4,187.24,187.15,0.1]
[1730941407343,5.56332078,187.17,187.15,0.1]
[1730941407552,0.12549,187.23,187.15,0.1]
[1730941407757,5.56336241,187.17,187.15,0.1]
[1730941407943,5.68885241,187.17,187.15,0.1]
[1730941408145,0.12549,187.17,187.16,0.1]
[1730941408359,0.12549,187.17,187.15,0.1]
[1730941408740,0.12549,187.16,187.15,0.1]
[1730941408938,0.12549,187.23,187.15,0.1]
[1730941409144,0.12549,187.21,187.15,0.1]
[1730941409660,0.12549,187.21,187.13,0.1]
[1730941410264,0.12549,187.21,187.14,0.1]
[1730941410744,0.12549,187.21,187.14,0.2]
[1730941411068,0.12549,187.21,187.15,0.1]
[1730941411360,0.12549,187.21,187.14,0.1]
[1730941411561,0.12549,187.21,187.14,0.2]
[1730941411741,0.12549,187.21,187.14,0.1]
[1730941411943,0.12549,187.21,187.14,0.2]
[1730941412250,0.12549,187.19,187.13,0.2]
[1730941412456,158.52549,187.19,187.15,0.1]
[1730941412963,158.52549,187.19,187.13,0.2]
[1730941413151,158.52549,187.19,187.14,0.1]
[1730941413350,158.52549,187.19,187.13,0.1]
[1730941413859,158.52549,187.19,187.13,0.2]
[1730941414057,0.12549,187.17,187.13,0.1]
[1730941414561,0.12549,187.17,187.1,0.1]
[1730941414562,0.12549,187.17,187.12,0.1]
[1730941415356,0.12549,187.17,187.11,0.1]
[1730941415664,46.368074,187.17,187.11,0.1]
[1730941415960,51.710974,187.17,187.07,0.2]
[1730941416166,46.368074,187.17,187.11,0.1]
[1730941416383,46.368074,187.17,187.07,0.1]
[1730941416543,51.710874,187.17,187.04,0.2]
[1730941416737,51.710874,187.17,187.0,15.178]
[1730941416738,23.902374,187.15,187.03,0.1]
[1730941416956,23.902374,187.15,187.02,0.1]
[1730941416957,182.302374,187.15,187.02,0.1]
[1730941417157,182.302374,187.15,187.03,0.2]
[1730941418165,23.902374,187.13,187.05,0.1]
[1730941418365,0.12549,187.13,187.07,0.2]
[1730941418662,0.12549,187.11,187.07,0.2]
[1730941418864,0.12549,187.11,187.06,0.1]
[1730941419075,23.902374,187.11,187.04,0.1]
[1730941419242,23.902374,187.11,187.02,0.1]
[1730941419438,23.902374,187.11,187.02,0.2]
[1730941419666,23.902374,187.11,187.02,0.1]
[1730941420241,23.902374,187.11,187.01,0.1]
[1730941420803,0.12549,187.06,186.98,0.1]
[1730941421065,0.12549,187.06,187.01,0.1]
[1730941421267,0.12549,187.06,187.0,0.1]
[1730941421765,23.902374,187.04,186.98,0.1]
[1730941421946,23.902374,187.04,187.0,0.1]
[1730941422155,23.902374,187.04,186.99,0.1]
[1730941422466,23.902374,187.04,186.98,0.1]
[1730941422658,23.902374,187.04,186.99,0.1]
[1730941423347,23.902374,187.04,187.0,0.1]
[1730941423863,0.12549,187.04,187.01,0.2]
[1730941424061,0.12549,187.04,187.02,0.1]
[1730941424242,23.902374,187.08,187.02,0.1]
[1730941424446,158.4,187.08,187.04,0.1]
[1730941424659,158.4,187.08,187.06,0.1]
[1730941424855,158.4,187.11,187.05,0.2]
[1730941425585,0.12549,187.1,187.05,0.2]
[1730941425965,0.12549,187.1,187.04,0.2]
[1730941426169,0.12549,187.1,187.05,0.2]
[1730941426367,0.12549,187.1,187.06,0.1]
[1730941426570,0.12549,187.1,187.05,0.2]
[1730941426970,0.12549,187.1,187.06,0.1]
[1730941427183,0.12549,187.1,187.07,0.1]
[1730941427489,0.12549,187.1,187.06,0.1]
[1730941427984,0.12549,187.1,187.05,0.1]
[1730941428172,0.12549,187.1,187.05,0.2]
[1730941428681,23.902374,187.1,187.04,0.1]
[1730941428888,23.902374,187.1,187.02,0.1]
[1730941428889,23.902374,187.1,187.02,0.2]
[1730941429088,6.1354,187.13,186.95,15.6959]
[1730941429089,23.902374,187.08,187.01,0.1]
[1730941429390,23.902374,187.06,186.99,0.2]
[1730941429557,23.902374,187.06,187.0,0.1]
[1730941429758,23.902374,187.06,186.99,0.1]
[1730941429956,23.902374,187.06,187.0,0.1]
[1730941430161,23.902374,187.06,187.0,0.2]
[1730941430579,23.902374,187.06,187.0,0.1]
[1730941430802,23.902374,187.06,187.0,0.2]
[1730941430975,23.902374,187.07,187.01,0.1]
[1730941431285,23.902374,187.07,187.03,0.1]
[1730941432487,0.12549,187.07,187.04,0.1]
[1730941432692,0.12549,187.07,187.05,0.1]
[1730941433584,5.55480785,187.09,187.06,0.2]
[1730941433784,5.55480785,187.09,187.07,0.2]
[1730941433992,5.55480785,187.09,187.08,0.1]
[1730941434194,5.55480785,187.09,187.07,0.1]
[1730941434393,0.12549,187.08,187.07,0.2]
[1730941434694,0.12549,187.08,187.06,0.1]
[1730941434901,0.12549,187.08,187.05,0.2]
[1730941435680,0.12549,187.08,187.06,0.1]
[1730941436086,0.12549,187.08,187.05,0.2]
[1730941438779,0.12549,187.08,187.04,0.1]
[1730941438980,182.302374,187.08,187.04,0.1]
[1730941439677,182.302374,187.08,187.05,0.1]
[1730941440190,158.52549,187.08,187.06,0.1]
[1730941440389,158.52549,187.08,187.05,0.2]
[1730941440601,158.52549,187.08,187.06,0.1]
[1730941440783,158.52549,187.08,187.06,0.2]
[1730941441179,158.52549,187.08,187.06,0.1]
[1730941441379,158.52549,187.08,187.07,0.2]
[1730941441610,5.55480785,187.09,187.08,0.2]
[1730941442290,5.68029785,187.09,187.08,0.2]
[1730941442698,5.55480785,187.09,187.08,0.2]
[1730941443409,174.8385,187.2,187.08,12.53386367]
[1730941443594,0.12549,187.19,187.14,0.1]
[1730941443792,0.12549,187.19,187.08,0.1]
[1730941443793,0.12549,187.19,187.13,0.1]
[1730941444008,0.12549,187.17,187.11,0.2]
[1730941444184,0.12549,187.17,187.11,0.1]
[1730941444386,0.12549,187.17,187.11,0.2]
[1730941444585,23.902374,187.15,187.1,0.1]
[1730941444803,23.902374,187.15,187.12,0.1]
[1730941444983,0.12549,187.15,187.12,0.1]
[1730941445185,0.12549,187.15,187.11,0.1]
[1730941445410,0.12549,187.15,187.12,0.1]
[1730941445588,0.12549,187.15,187.13,0.1]
[1730941445805,0.12549,187.15,187.12,0.1]
[1730941446093,5.55475703,187.18,187.15,0.1]
[1730941446482,5.55475703,187.18,187.15,0.2]
[1730941446922,0.12549,187.17,187.15,0.2]
[1730941447601,0.12549,187.17,187.16,0.1]
[1730941447796,0.12549,187.17,187.16,0.2]
[1730941448109,5.55475703,187.18,187.17,0.1]
[1730941448410,0.12549,187.17,187.15,0.2]
[1730941448590,0.12549,187.17,187.15,0.1]
[1730941449007,0.12549,187.17,187.15,0.2]
[1730941449215,0.12549,187.17,187.15,0.1]
[1730941449427,0.12549,187.17,187.15,0.2]
[1730941452008,0.12549,187.17,187.15,0.1]
[1730941452199,0.12549,187.17,187.15,0.2]
[1730941452814,0.12549,187.17,187.16,0.1]
[1730941452993,0.12549,187.2,187.16,0.1]
[1730941453193,5.68582539,187.2,187.16,0.1]
[1730941453394,5.68582539,187.2,187.17,0.1]
[1730941453621,5.68582539,187.2,187.16,0.1]
[1730941458417,5.68582539,187.2,187.17,0.1]
[1730941458610,5.68582539,187.2,187.16,0.2]
[1730941458921,5.68582539,187.2,187.16,0.1]
[1730941459218,5.68582539,187.2,187.16,0.2]
[1730941460197,5.68582539,187.2,187.16,0.1]
[1730941460623,5.68582539,187.2,187.16,0.2]
[1730941461822,5.56033539,187.2,187.19,0.2]
[1730941461996,158.4,187.26,187.21,0.1]
[1730941462193,158.4,187.26,187.21,0.2]
[1730941462493,0.12549,187.25,187.22,0.1]
[1730941462730,5.68226935,187.25,187.22,0.1]
[1730941463017,5.55677935,187.25,187.24,0.1]
[1730941463427,5.68226935,187.25,187.24,0.2]
[1730941463603,0.12549,187.25,187.24,0.2]
[1730941463809,0.12549,187.24,187.21,0.2]
[1730941463997,0.12549,187.24,187.21,0.1]
[1730941464402,0.12549,187.24,187.2,0.1]
[1730941464925,0.12549,187.24,187.21,0.1]
[1730941465218,0.12549,187.24,187.2,0.1]
[1730941465608,0.12549,187.24,187.21,0.1]
[1730941465805,0.12549,187.24,187.2,0.2]
[1730941466118,0.12549,187.24,187.21,0.1]
[1730941466298,0.12549,187.24,187.23,0.1]
[1730941466624,0.12549,187.24,187.22,0.1]
[1730941466804,0.12549,187.24,187.23,0.1]
[1730941467117,0.12549,187.24,187.22,0.1]
[1730941467618,0.12549,187.24,187.23,0.1]
[1730941467800,163.96991023,187.25,187.23,0.2]
[1730941468000,163.96991023,187.25,187.23,0.1]
[1730941468209,0.12549,187.24,187.22,0.1]
[1730941468616,0.12549,187.24,187.22,0.2]
[1730941468798,0.12549,187.24,187.22,0.1]
[1730941469419,0.12549,187.24,187.21,0.1]
[1730941470123,0.12549,187.24,187.2,0.2]
[1730941470423,0.12549,187.24,187.2,0.1]
[1730941470611,0.12549,187.24,187.19,0.2]
[1730941470811,23.902374,187.24,187.18,0.1]
[1730941471025,23.902374,187.24,187.16,0.1]
[1730941471326,23.902374,187.24,187.15,0.1]
[1730941471327,23.902374,187.22,187.15,0.1]
[1730941471499,0.12549,187.22,187.15,0.1]
[1730941471707,0.12549,187.22,187.17,0.1]
[1730941471900,0.12549,187.22,187.15,0.1]
[1730941472328,0.12549,187.22,187.15,0.2]
[1730941472627,0.12549,187.22,187.16,0.1]
[1730941472923,0.12549,187.22,187.15,0.1]
[1730941473304,0.12549,187.22,187.14,0.2]
[1730941473505,0.12549,187.2,187.15,0.2]
[1730941473707,158.52549,187.2,187.15,0.2]
[1730941474309,0.12549,187.18,187.15,0.2]
[1730941474798,0.12549,187.18,187.15,0.1]
[1730941475002,0.12549,187.18,187.15,0.2]
[1730941475214,0.12549,187.18,187.17,0.1]
[1730941476018,5.56002845,187.19,187.17,0.2]
[1730941476300,5.56002845,187.19,187.18,0.2]
[1730941477410,5.56002845,187.19,187.18,0.1]
[1730941477610,5.56002845,187.19,187.18,0.2]
[1730941478813,5.56002845,187.19,187.18,15.4906]
[1730941479010,0.12549,187.31,187.23,0.2]
[1730941479211,0.12549,187.24,187.23,0.1]
[1730941479724,0.12549,187.26,187.22,0.2]
[1730941480037,0.12549,187.26,187.22,0.1]
[1730941480717,0.12549,187.26,187.21,0.1]
[1730941480918,0.12549,187.26,187.2,0.2]
[1730941481231,23.902374,187.26,187.2,0.1]
[1730941481431,0.12549,187.26,187.21,0.2]
[1730941481635,0.12549,187.26,187.17,0.2]
[1730941481811,23.902374,187.26,187.19,0.1]
[1730941482130,23.902374,187.26,187.2,0.1]
[1730941482338,23.902374,187.26,187.21,0.1]
[1730941483238,23.902374,187.26,187.2,0.1]
[1730941483739,23.902374,187.26,187.2,0.2]
[1730941484113,23.902374,187.24,187.16,0.2]
[1730941484434,30.44850412,187.24,187.17,0.1]
[1730941484915,30.44850412,187.24,187.21,0.1]
[1730941484916,0.12549,187.24,187.21,0.1]
[1730941485120,0.12549,187.24,187.22,0.2]
[1730941485506,5.56412572,187.27,187.22,0.1]
[1730941485507,0.12549,187.26,187.22,0.1]
[1730941486025,0.12549,187.26,187.21,0.1]
[1730941486217,0.12549,187.26,187.19,0.2]
[1730941486411,0.12549,187.26,187.21,0.1]
[1730941486615,0.12549,187.26,187.22,0.1]
[1730941489329,158.52549,187.26,187.22,0.1]
[1730941490008,5.56029059,187.25,187.22,0.1]
[1730941490209,0.12549,187.24,187.22,0.1]
[1730941491708,0.12549,187.24,187.23,0.1]
[1730941491927,0.12549,187.24,187.23,0.2]
[1730941492134,0.12549,187.24,187.23,0.1]
[1730941494023,0.12549,187.24,187.23,0.2]
[1730941494735,5.56029059,187.25,187.24,0.1]
[1730941495032,5.68578059,187.25,187.24,0.07496108]
[1730941495631,5.68578059,187.25,187.24,0.17496108]
[1730941496421,5.68578059,187.25,187.24,0.07496108]
[1730941496735,5.68578059,187.25,187.24,0.17496108]
[1730941496950,5.68578059,187.25,187.24,0.07496108]
[1730941497237,5.68578059,187.25,187.24,0.17496108]
[1730941500142,5.68578059,187.25,187.24,0.07496108]
[1730941501014,5.68578059,187.25,187.24,0.17496108]
[1730941503515,0.12549,187.24,187.22,0.1]
[1730941503719,0.12549,187.24,187.2,0.1]
[1730941504219,0.12549,187.26,187.2,0.1]
[1730941504425,5.56243688,187.23,187.22,0.1]
[1730941504631,179.5371,187.28,187.22,0.1]
[1730941504840,0.12549,187.27,187.23,0.1]
[1730941505220,0.12549,187.25,187.23,0.1]
[1730941505619,0.12549,187.25,187.24,0.1]
[1730941506525,0.12549,187.25,187.23,0.1]
[1730941506838,0.12549,187.25,187.15,16.1209]
[1730941506839,0.12549,187.25,187.22,0.1]
[1730941507023,0.12549,187.25,187.24,0.1]
[1730941508037,5.56259351,187.26,187.24,0.1]
[1730941508243,5.56259351,187.26,187.25,0.1]
[1730941508623,6.54613012,187.31,187.25,0.1]
[1730941508820,16.2156,187.37,187.25,0.1]
[1730941509020,6.54613012,187.32,187.24,0.1]
[1730941509225,0.12549,187.27,187.22,0.1]
[1730941509429,0.12549,187.25,187.23,0.1]
[1730941509633,6.67162012,187.25,187.2,0.1]
[1730941509840,6.67162012,187.25,187.22,0.1]
[1730941510024,6.67162012,187.25,187.2,0.1]
[1730941510229,0.12549,187.23,187.16,0.1]
[1730941510426,6.67162012,187.23,187.16,0.1]
[1730941510638,0.12549,187.21,187.18,0.1]
[1730941512961,18.36572839,187.26,187.18,0.1]
[1730941513247,18.36572839,187.26,187.2,0.1]
[1730941513448,18.36572839,187.26,187.13,15.1607]
[1730941513449,18.36572839,187.26,187.19,0.1]
[1730941513654,0.12549,187.25,187.19,0.1]
[1730941514248,0.12549,187.25,187.2,0.1]
[1730941514447,0.12549,187.25,187.21,0.1]
[1730941514635,23.902374,187.25,187.2,0.1]
[1730941514835,23.902374,187.25,187.19,0.1]
[1730941515354,23.902374,187.25,187.2,0.1]
[1730941515651,23.902374,187.25,187.18,0.1]
[1730941516058,23.902374,187.25,187.19,0.1]
[1730941516253,23.902374,187.25,187.18,0.1]
[1730941516557,23.902374,187.25,187.19,0.1]
[1730941516855,23.902374,187.25,187.18,0.1]
[1730941517050,23.902374,187.25,187.19,0.1]
[1730941517957,23.902374,187.25,187.2,0.1]
[1730941518337,23.902374,187.25,187.19,0.1]
[1730941518940,0.12549,187.23,187.19,0.1]
[1730941519553,0.12549,187.23,187.2,0.1]
[1730941519853,0.12549,187.24,187.22,0.1]
[1730941520054,158.4,187.25,187.22,0.1]
[1730941520371,5.68549768,187.24,187.23,0.1]
[1730941520872,5.56000768,187.24,187.23,0.1]
[1730941521037,173.5827,187.3,187.24,0.1]
[1730941521238,5.56103445,187.27,187.24,0.1]
[1730941521435,0.12549,187.29,187.25,0.1]
[1730941521653,7.99652694,187.31,187.25,0.1]
[1730941521853,5.55980785,187.26,187.25,0.1]
[1730941522057,0.12549,187.3,187.25,0.1]
[1730941523471,7.99652694,187.31,187.25,0.1]
[1730941523759,22.6013,187.41,187.32,0.1]
[1730941523940,23.98558011,187.41,187.35,0.1]
[1730941524136,0.12549,187.37,187.35,0.1]
[1730941524563,0.12549,187.37,187.34,0.1]
[1730941524745,0.12549,187.37,187.33,0.1]
[1730941524945,22.6013,187.41,187.34,0.1]
[1730941525160,22.6013,187.41,187.33,0.1]
[1730941525462,22.6013,187.41,187.35,0.1]
[1730941525672,0.0702677,187.38,187.35,0.1]
[1730941526442,0.0702677,187.38,187.36,0.1]
[1730941526644,0.0702677,187.38,187.37,0.1]
[1730941527345,0.0702677,187.38,187.37,16.7327]
[1730941528369,0.0702677,187.38,187.37,29.03233099]
[1730941528558,0.0702677,187.38,187.37,29.13233099]
[1730941529345,0.0702677,187.38,187.37,29.03233099]
[1730941529660,0.0702677,187.38,187.37,29.13233099]
[1730941532067,0.0702677,187.38,187.37,29.03233099]
[1730941532384,0.0702677,187.38,187.37,16.7327]
[1730941532542,0.0702677,187.38,187.37,0.1]
[1730941533175,0.0702677,187.38,187.37,12.39963099]
[1730941533745,0.0702677,187.38,187.37,12.49963099]
[1730941534075,0.0702677,187.38,187.37,12.59963099]
[1730941535260,0.0702677,187.38,187.37,19.19193099]
[1730941535753,1.4073222,187.53,187.37,19.19193099]
[1730941535754,20.0,187.59,187.47,0.1]
[1730941535961,20.0,187.59,187.55,0.1]
[1730941536276,20.0,187.59,187.52,12.29963099]
[1730941536277,20.0,187.59,187.56,0.1]
[1730941537273,20.0,187.59,187.56,12.49963099]
[1730941537656,20.0,187.59,187.56,0.2]
[1730941537856,20.0,187.59,187.56,12.49963099]
[1730941538261,20.0,187.59,187.56,0.1]
[1730941539658,0.12549,187.56,187.52,0.1]
[1730941539848,0.5702677,187.57,187.56,0.1]
[1730941540256,0.5702677,187.57,187.56,12.49963099]
[1730941540672,0.5702677,187.57,187.56,0.2]
[1730941540907,0.5702677,187.57,187.56,0.1]
[1730941541362,0.12549,187.56,187.53,0.1]
[1730941541549,0.12549,187.56,187.44,0.1]
[1730941541550,0.12549,187.56,187.5,0.1]
[1730941541756,0.12549,187.56,187.53,0.1]
[1730941541958,0.12549,187.56,187.5,0.1]
[1730941542265,23.902374,187.56,187.52,0.1]
[1730941543658,23.902374,187.56,187.43,15.5621]
[1730941543659,23.902374,187.56,187.5,0.1]
[1730941544276,23.902374,187.56,187.43,27.76173099]
[1730941544277,23.902374,187.56,187.52,0.1]
[1730941544679,23.902374,187.56,187.5,0.1]
[1730941545293,23.902374,187.56,187.48,0.1]
[1730941545490,23.902374,187.56,187.49,0.1]
[1730941545787,23.902374,187.56,187.5,0.1]
[1730941546107,23.902374,187.56,187.49,0.1]
[1730941546771,23.902374,187.56,187.48,0.1]
[1730941546966,23.902374,187.56,187.52,0.1]
[1730941547170,23.902374,187.56,187.5,0.1]
[1730941547384,23.902374,187.56,187.52,0.1]
[1730941547595,23.902374,187.56,187.53,0.1]
[1730941548200,0.5702677,187.57,187.54,0.1]
[1730941548380,0.5702677,187.57,187.56,0.1]
[1730941548897,0.6957577,187.57,187.56,0.1]
[1730941549073,0.5702677,187.57,187.56,0.1]
[1730941549392,0.5702677,187.57,187.54,0.1]
[1730941549585,0.5702677,187.57,187.53,0.1]
[1730941549792,0.5702677,187.57,187.54,0.1]
[1730941549973,0.6957577,187.57,187.56,0.1]
[1730941550299,0.6957577,187.57,187.54,0.1]
[1730941550598,0.6957577,187.57,187.53,0.1]
[1730941550798,0.6957577,187.57,187.54,0.1]
[1730941550975,0.12549,187.56,187.53,0.1]
[1730941551174,29.46664542,187.56,187.52,0.1]
[1730941551373,29.46664542,187.56,187.51,0.1]
[1730941551589,29.46664542,187.56,187.53,0.1]
[1730941551886,29.46664542,187.56,187.46,12.29963099]
[1730941551887,5.68976142,187.56,187.54,0.1]
[1730941553184,5.68976142,187.56,187.53,0.1]
[1730941553493,0.12549,187.54,187.51,0.1]
[1730941554201,0.12549,187.54,187.5,0.1]
[1730941554574,0.12549,187.54,187.53,0.1]
[1730941554773,0.12549,187.54,187.51,0.1]
[1730941555075,0.12549,187.54,187.5,0.1]
[1730941555275,0.12549,187.54,187.51,0.1]
[1730941555490,0.12549,187.54,187.5,0.1]
[1730941555799,0.12549,187.55,187.51,0.1]
[1730941556178,0.12549,187.55,187.53,0.1]
[1730941556381,0.12549,187.55,187.52,0.1]
[1730941556579,0.12549,187.55,187.45,12.39963099]
[1730941556580,0.12549,187.55,187.51,0.1]
[1730941558300,0.12549,187.55,187.5,0.1]
[1730941558603,0.12549,187.55,187.51,0.1]
[1730941559069,0.12549,187.55,187.49,0.1]
[1730941559276,23.902374,187.55,187.5,0.1]
[1730941559482,23.902374,187.55,187.51,0.1]
[1730941559685,23.902374,187.55,187.5,0.1]
[1730941560096,23.902374,187.55,187.51,0.1]
[1730941560385,23.902374,187.55,187.5,0.1]